fUSD/lending_fUSD_20241220
["ID","MTS","AMOUNT","RATE_DAILY","PERIOD"]
[346110364,1734707459102,-500.0,0.00023561,4]
[346110365,1734707459112,-500.0,0.00023561,4]
[346110366,1734707459121,-500.0,0.00023561,4]
[346110367,1734707459131,-500.0,0.00023561,4]
[346110368,1734707459141,-500.0,0.00023561,4]
[346110369,1734707459151,-733.25,0.00023561,4]
[346110370,1734707459161,-617.62,0.00023561,4]
[346110371,1734707459170,-500.0,0.00023561,4]
[346110372,1734707459180,-500.0,0.00023561,4]
[346110373,1734707459189,-300.69912453,0.00023561,4]
[346110374,1734707459199,-1000.0,0.00023561,5]
[346110375,1734707459208,-508.22,0.00023561,4]
[346110376,1734707459218,-500.0,0.00023561,4]
[346110377,1734707459227,-500.0,0.00023561,4]
[346110378,1734707459236,-500.0,0.00023561,4]
[346110379,1734707459245,-703.71,0.00023561,4]
[346110380,1734707459255,-500.0,0.00023561,4]
[346110381,1734707459264,-500.0,0.00023561,4]
[346110382,1734707459273,-728.49,0.00023561,4]
[346110383,1734707459283,-500.0,0.00023561,4]
[346110384,1734707459294,-552.28,0.00023561,4]
[346110385,1734707459304,-1537.6,0.00023561,4]
[346110386,1734707459313,-1492.37,0.00023561,4]
[346110387,1734707459322,-529.58,0.00023561,4]
[346110388,1734707459332,-500.0,0.00023561,2]
[346110389,1734707459341,-500.0,0.00023561,4]
[346110390,1734707459351,-500.0,0.00023561,4]
[346110391,1734707459360,-2314.29,0.00023561,4]
[346110392,1734707459370,-1484.67,0.00023561,4]
[346110393,1734707459380,-500.0,0.00023561,4]
[346110394,1734707459390,-692.37,0.00023561,4]
[346110395,1734707459399,-500.0,0.00023561,4]
[346110396,1734707459409,-500.0,0.00023561,4]
[346110397,1734707459418,-500.0,0.00023561,4]
[346110398,1734707459428,-853.34,0.00023561,4]
[346110399,1734707459438,-1231.78,0.00023561,4]
[346110400,1734707459447,-1496.64,0.00023561,4]
[346110401,1734707459460,-500.0,0.00023561,4]
[346110402,1734707459470,-500.0,0.00023561,4]
[346110403,1734707459480,-688.65,0.00023561,4]
[346110404,1734707459490,-654.6,0.00023561,4]
[346110405,1734707459499,-1117.72,0.00023561,4]
[346110406,1734707459509,-500.0,0.00023561,4]
[346110407,1734707459518,-1296.21,0.00023561,4]
[346110408,1734707459528,-500.0,0.00023561,4]
[346110409,1734707459537,-500.0,0.00023561,4]
[346110410,1734707459549,-500.0,0.00023561,4]
[346110411,1734707459559,-500.0,0.00023561,4]
[346110412,1734707459569,-500.0,0.00023561,4]
[346110413,1734707459578,-500.0,0.00023561,4]
[346110414,1734707459587,-1206.4,0.00023561,4]
[346110415,1734707459597,-1027.71,0.00023561,4]
[346110416,1734707459606,-2695.1,0.00023561,4]
[346110417,1734707459616,-1092.82,0.00023561,4]
[346110418,1734707459627,-500.0,0.00023561,4]
[346110419,1734707459636,-500.0,0.00023561,4]
[346110420,1734707459646,-1837.68,0.00023561,4]
[346110421,1734707459655,-546.08,0.00023561,4]
[346110422,1734707459665,-5443.38,0.00023561,4]
[346110423,1734707459674,-685.52,0.00023561,4]
[346110424,1734707459683,-500.0,0.00023561,4]
[346110425,1734707459693,-500.0,0.00023561,4]
[346110426,1734707459703,-701.16,0.00023561,4]
[346110427,1734707459713,-500.0,0.00023561,4]
[346110428,1734707459722,-1609.32,0.00023561,4]
[346110429,1734707459732,-541.47,0.00023561,4]
[346110430,1734707459741,-763.11,0.00023561,4]
[346110431,1734707459751,-631.11,0.00023561,4]
[346110432,1734707459761,-1104.99,0.00023561,4]
[346110433,1734707459770,-771.36,0.00023561,4]
[346110434,1734707459779,-500.0,0.00023561,4]
[346110435,1734707459791,-500.0,0.00023561,4]
[346110436,1734707459801,-793.52,0.00023561,4]
[346110437,1734707459811,-500.0,0.00023561,4]
[346110438,1734707459821,-500.0,0.00023561,4]
[346110439,1734707459831,-1146.34,0.00023561,4]
[346110440,1734707459840,-1833.46,0.00023561,4]
[346110441,1734707459850,-500.0,0.00023561,4]
[346110442,1734707459859,-500.0,0.00023561,4]
[346110443,1734707459869,-6508.14,0.00023561,4]
[346110444,1734707459879,-500.0,0.00023561,4]
[346110445,1734707459889,-500.0,0.00023561,4]
[346110446,1734707459899,-903.84,0.00023561,4]
[346110447,1734707459908,-500.0,0.00023561,4]
[346110448,1734707459918,-500.0,0.00023561,4]
[346110449,1734707459928,-500.0,0.00023561,4]
[346110450,1734707459937,-500.0,0.00023561,4]
[346110451,1734707459947,-500.0,0.00023561,4]
[346110452,1734707459957,-731.02,0.00023561,4]
[346110453,1734707459967,-776.61,0.00023561,4]
[346110454,1734707459976,-500.0,0.00023561,4]
[346110455,1734707459986,-507.66,0.00023561,4]
[346110456,1734707459996,-965.02,0.00023561,4]
[346110457,1734707460005,-759.84,0.00023561,4]
[346110458,1734707460017,-6484.19,0.00023561,4]
[346110459,1734707460030,-500.0,0.00023561,4]
[346110460,1734707460042,-1666.41,0.00023561,4]
[346110461,1734707460053,-2332.61,0.00023561,4]
[346110462,1734707460064,-500.0,0.00023561,4]
[346110463,1734707460075,-501.2,0.00023561,4]
[346110464,1734707460141,-1389.61,0.00023561,4]
[346110465,1734707460152,-935.41,0.00023561,4]
[346110466,1734707460161,-2453.03,0.00023561,4]
[346110467,1734707460171,-2033.56,0.00023561,4]
[346110468,1734707460181,-500.0,0.00023561,4]
[346110469,1734707460190,-500.0,0.00023561,4]
[346110470,1734707460200,-500.0,0.00023561,4]
[346110471,1734707460209,-500.0,0.00023561,4]
[346110472,1734707460220,-1400.1,0.00023561,4]
[346110473,1734707460229,-1000.0,0.00023561,4]
[346110474,1734707460239,-594.31,0.00023561,4]
[346110475,1734707460248,-500.0,0.00023561,4]
[346110476,1734707460258,-276.71,0.00023561,4]
[346110477,1734707460267,-673.97,0.00023561,4]
[346110478,1734707460277,-500.0,0.00023561,4]
[346110479,1734707460286,-500.0,0.00023561,4]
[346110480,1734707460298,-500.0,0.00023561,4]
[346110481,1734707460307,-500.0,0.00023561,4]
[346110482,1734707460317,-500.0,0.00023561,4]
[346110483,1734707460326,-555.46,0.00023561,4]
[346110484,1734707460336,-736.35,0.00023561,4]
[346110485,1734707460345,-1063.31,0.00023561,4]
[346110486,1734707460354,-500.0,0.00023561,4]
[346110487,1734707460363,-947.08,0.00023561,4]
[346110488,1734707460372,-784.6,0.00023561,4]
[346110489,1734707460381,-500.0,0.00023561,4]
[346110490,1734707460390,-500.0,0.00023561,4]
[346110491,1734707460399,-623.0,0.00023561,4]
[346110492,1734707460407,-716.67,0.00023561,4]
[346110493,1734707460416,-580.98,0.00023561,4]
[346110494,1734707460426,-551.86,0.00023561,4]
[346110495,1734707460435,-3286.73,0.00023561,4]
[346110496,1734707460444,-1009.08,0.00023561,4]
[346110497,1734707460454,-1115.76,0.00023561,4]
[346110498,1734707460464,-779.29,0.00023561,4]
[346110499,1734707460474,-500.0,0.00023561,4]
[346110500,1734707460483,-884.51,0.00023561,4]
[346110501,1734707460493,-500.0,0.00023561,4]
[346110502,1734707460503,-542.56351131,0.00023561,4]
[346110503,1734707460513,-842.18,0.00023561,4]
[346110504,1734707460523,-553.76,0.00023561,4]
[346110505,1734707460533,-524.23,0.00023561,4]
[346110506,1734707460546,-500.0,0.00023561,4]
[346110507,1734707460557,-736.43,0.00023561,4]
[346110508,1734707460567,-500.0,0.00023561,4]
[346110509,1734707460577,-1081.46,0.00023561,4]
[346110510,1734707460586,-547.43,0.00023561,4]
[346110511,1734707460596,-500.0,0.00023561,4]
[346110512,1734707460605,-500.0,0.00023561,4]
[346110513,1734707460616,-1201.33,0.00023561,4]
[346110514,1734707460626,-500.0,0.00023561,4]
[346110515,1734707460636,-500.0,0.00023561,4]
[346110516,1734707460646,-1116.84,0.00023561,4]
[346110517,1734707460655,-1200.85,0.00023561,4]
[346110518,1734707460665,-500.0,0.00023561,4]
[346110519,1734707460675,-1096.41,0.00023561,4]
[346110520,1734707460684,-500.0,0.00023561,4]
[346110521,1734707460694,-500.0,0.00023561,4]
[346110522,1734707460704,-980.9,0.00023561,4]
[346110523,1734707460713,-500.0,0.00023561,4]
[346110524,1734707460725,-500.0,0.00023561,4]
[346110525,1734707460734,-777.07,0.00023561,4]
[346110526,1734707460744,-500.0,0.00023561,4]
[346110527,1734707460753,-2214.51,0.00023561,4]
[346110528,1734707460762,-566.5,0.00023561,4]
[346110529,1734707460772,-739.61,0.000236,2]
[346110530,1734707460782,-1238.01,0.00023656,2]
[346110531,1734707460793,-564.0,0.00023657,2]
[346110532,1734707460803,-150.0,0.00023657,2]
[346110533,1734707460813,-868.953,0.00023657,2]
[346110534,1734707460823,-1170.0,0.00023657,2]
[346110535,1734707460832,-217.0,0.0002366,2]
[346110536,1734707460842,-152.0,0.0002368,5]
[346110537,1734707460851,-1226.06,0.00023689,7]
[346110538,1734707460861,-1226.06,0.00023689,7]
[346110539,1734707460871,-1000.0,0.000237,2]
[346110540,1734707460881,-500.0,0.00023719,2]
[346110541,1734707460890,-150.0,0.00023726,2]
[346110542,1734707460899,-150.0,0.0002373,2]
[346110543,1734707460908,-150.0,0.00023732,2]
[346110544,1734707460918,-150.0,0.00023733,2]
[346110545,1734707460927,-150.0,0.00023735,2]
[346110546,1734707460936,-150.0,0.00023737,2]
[346110547,1734707460946,-150.0,0.00023737,2]
[346110548,1734707460955,-150.0,0.00023738,2]
[346110549,1734707460965,-500.0,0.00023749,2]
[346110550,1734707460975,-150.0,0.00023751,2]
[346110551,1734707460984,-150.0,0.00023755,2]
[346110552,1734707460993,-150.0,0.0002376,2]
[346110553,1734707461003,-150.0,0.00023761,2]
[346110554,1734707461012,-150.0,0.00023763,2]
[346110555,1734707461023,-150.0,0.00023764,2]
[346110556,1734707461033,-150.0,0.00023764,2]
[346110557,1734707461046,-150.0,0.00023771,2]
[346110558,1734707461055,-150.0,0.00023771,2]
[346110559,1734707461066,-150.0,0.00023772,2]
[346110560,1734707461075,-150.0,0.00023773,2]
[346110561,1734707461084,-500.0,0.00023778,2]
[346110562,1734707461094,-150.0,0.00023782,2]
[346110563,1734707461104,-150.0,0.00023782,2]
[346110564,1734707461114,-500.0,0.00023785,120]
[346110565,1734707461124,-2000.0,0.00023785,120]
[346110566,1734707461133,-200.0,0.00023785,120]
[346110567,1734707461142,-150.0,0.00023786,2]
[346110568,1734707461152,-150.0,0.00023786,2]
[346110569,1734707461161,-150.0,0.00023789,2]
[346110570,1734707461171,-150.0,0.00023794,2]
[346110571,1734707461180,-150.0,0.00023795,2]
[346110572,1734707461190,-150.0,0.00023799,2]
[346110573,1734707461200,-150.0,0.000238,2]
[346110574,1734707461210,-1003.0,0.000238,2]
[346110575,1734707461220,-150.0,0.00023801,2]
[346110576,1734707461229,-150.0,0.00023801,2]
[346110577,1734707461239,-150.0,0.00023802,2]
[346110578,1734707461248,-150.0,0.00023803,2]
[346110579,1734707461258,-500.0,0.00023807,2]
[346110580,1734707461268,-150.0,0.00023808,2]
[346110581,1734707461277,-150.0,0.00023816,2]
[346110582,1734707461287,-150.0,0.00023819,2]
[346110583,1734707461298,-150.0,0.00023825,2]
[346110584,1734707461307,-153.0,0.00023827,2]
[346110585,1734707461317,-150.0,0.00023827,2]
[346110586,1734707461326,-150.0,0.00023829,2]
[346110587,1734707461335,-150.0,0.00023829,2]
[346110588,1734707461344,-150.0,0.00023833,2]
[346110589,1734707461354,-500.0,0.00023835,4]
[346110590,1734707461363,-500.0,0.00023835,4]
[346110591,1734707461372,-196.142161,0.00023835,4]
[346110592,1734707461382,-173.934065,0.00023835,4]
[346110593,1734707461392,-500.0,0.00023835,4]
[346110594,1734707461401,-500.0,0.00023835,4]
[346110595,1734707461410,-535.42,0.00023835,4]
[346110596,1734707461420,-500.0,0.00023835,4]
[346110597,1734707461429,-500.0,0.00023835,4]
[346110598,1734707461439,-561.32,0.00023835,4]
[346110599,1734707461448,-500.0,0.00023835,4]
[346110600,1734707461458,-500.0,0.00023835,4]
[346110601,1734707461467,-500.0,0.00023835,4]
[346110602,1734707461477,-500.0,0.00023835,4]
[346110603,1734707461486,-500.0,0.00023835,4]
[346110604,1734707461495,-587.40738471,0.00023835,4]
[346110605,1734707461504,-500.0,0.00023835,4]
[346110606,1734707461513,-500.0,0.00023835,4]
[346110607,1734707461522,-320.3,0.00023835,4]
[346110608,1734707461532,-500.0,0.00023835,4]
[346110609,1734707461541,-153.78039137,0.00023835,4]
[346110610,1734707461551,-500.0,0.00023835,4]
[346110611,1734707461559,-500.0,0.00023835,4]
[346110612,1734707461569,-500.0,0.00023835,4]
[346110613,1734707461578,-500.0,0.00023835,4]
[346110614,1734707461587,-500.0,0.00023835,4]
[346110615,1734707461596,-500.0,0.00023835,4]
[346110616,1734707461605,-500.0,0.00023835,4]
[346110617,1734707461614,-500.0,0.00023835,4]
[346110618,1734707461624,-500.0,0.00023835,4]
[346110619,1734707461633,-500.0,0.00023835,4]
[346110620,1734707461643,-500.0,0.00023835,4]
[346110621,1734707461652,-500.0,0.00023835,4]
[346110622,1734707461661,-518.88,0.00023835,4]
[346110623,1734707461670,-500.0,0.00023835,4]
[346110624,1734707461679,-780.17,0.00023835,4]
[346110625,1734707461689,-151.12011263,0.00023835,4]
[346110626,1734707461698,-501.97042968,0.00023835,4]
[346110627,1734707461708,-500.0,0.00023835,4]
[346110628,1734707461717,-500.0,0.00023835,4]
[346110629,1734707461726,-500.0,0.00023835,4]
[346110630,1734707461735,-218.14393497,0.00023835,4]
[346110631,1734707461745,-500.0,0.00023835,4]
[346110632,1734707461754,-500.0,0.00023835,4]
[346110633,1734707461763,-500.0,0.00023835,4]
[346110634,1734707461772,-500.0,0.00023835,4]
[346110635,1734707461781,-865.0,0.00023835,4]
[346110636,1734707461792,-616.88,0.00023835,4]
[346110637,1734707461801,-500.0,0.00023835,4]
[346110638,1734707461811,-920.36,0.00023835,4]
[346110639,1734707461820,-500.0,0.00023835,4]
[346110640,1734707461829,-500.0,0.00023835,4]
[346110641,1734707461838,-500.0,0.00023835,4]
[346110642,1734707461847,-500.0,0.00023835,4]
[346110643,1734707461856,-500.0,0.00023835,4]
[346110644,1734707461866,-500.0,0.00023835,4]
[346110645,1734707461875,-500.0,0.00023835,4]
[346110646,1734707461884,-500.0,0.00023835,4]
[346110647,1734707461893,-506.0,0.00023835,4]
[346110648,1734707461903,-500.0,0.00023835,4]
[346110649,1734707461912,-500.0,0.00023835,4]
[346110650,1734707461921,-500.0,0.00023835,4]
[346110651,1734707461931,-500.0,0.00023835,4]
[346110652,1734707461940,-500.0,0.00023835,4]
[346110653,1734707461950,-537.38,0.00023835,4]
[346110654,1734707461959,-500.0,0.00023835,4]
[346110655,1734707461969,-500.0,0.00023835,4]
[346110656,1734707461978,-500.0,0.00023835,4]
[346110657,1734707461987,-500.0,0.00023835,4]
[346110658,1734707461997,-500.0,0.00023835,4]
[346110659,1734707462006,-500.0,0.00023835,4]
[346110660,1734707462016,-500.0,0.00023835,4]
[346110661,1734707462029,-154.3,0.00023835,4]
[346110662,1734707462038,-500.0,0.00023835,4]
[346110663,1734707462052,-500.0,0.00023835,4]
[346110664,1734707462062,-500.0,0.00023835,4]
[346110665,1734707462071,-500.0,0.00023835,4]
[346110666,1734707462081,-500.0,0.00023835,4]
[346110667,1734707462091,-500.0,0.00023835,4]
[346110668,1734707462101,-500.0,0.00023835,4]
[346110669,1734707462111,-548.31,0.00023835,4]
[346110670,1734707462120,-500.0,0.00023835,4]
[346110671,1734707462129,-500.0,0.00023835,4]
[346110672,1734707462138,-500.0,0.00023835,4]
[346110673,1734707462147,-500.0,0.00023835,4]
[346110674,1734707462156,-500.0,0.00023835,4]
[346110675,1734707462165,-500.0,0.00023835,4]
[346110676,1734707462175,-733.25,0.00023835,4]
[346110677,1734707462184,-617.62,0.00023835,4]
[346110678,1734707462193,-500.0,0.00023835,4]
[346110679,1734707462202,-500.0,0.00023835,4]
[346110680,1734707462211,-1000.0,0.00023835,5]
[346110681,1734707462220,-508.22,0.00023835,4]
[346110682,1734707462230,-500.0,0.00023835,4]
[346110683,1734707462240,-500.0,0.00023835,4]
[346110684,1734707462249,-500.0,0.00023835,4]
[346110685,1734707462259,-703.71,0.00023835,4]
[346110686,1734707462268,-500.0,0.00023835,4]
[346110687,1734707462277,-500.0,0.00023835,4]
[346110688,1734707462287,-728.49,0.00023835,4]
[346110689,1734707462301,-500.0,0.00023835,4]
[346110690,1734707462310,-552.28,0.00023835,4]
[346110691,1734707462320,-1537.6,0.00023835,4]
[346110692,1734707462329,-1492.37,0.00023835,4]
[346110693,1734707462339,-529.58,0.00023835,4]
[346110694,1734707462348,-500.0,0.00023835,2]
[346110695,1734707462357,-500.0,0.00023835,4]
[346110696,1734707462366,-500.0,0.00023835,4]
[346110697,1734707462375,-2314.29,0.00023835,4]
[346110698,1734707462384,-1484.67,0.00023835,4]
[346110699,1734707462394,-500.0,0.00023835,4]
[346110700,1734707462404,-692.37,0.00023835,4]
[346110701,1734707462413,-500.0,0.00023835,4]
[346110702,1734707462422,-500.0,0.00023835,4]
[346110703,1734707462432,-500.0,0.00023835,4]
[346110704,1734707462441,-853.34,0.00023835,4]
[346110705,1734707462451,-1231.78,0.00023835,4]
[346110706,1734707462461,-1496.64,0.00023835,4]
[346110707,1734707462471,-500.0,0.00023835,4]
[346110708,1734707462480,-356.32655302,0.00023835,4]
[346110709,1734707462490,-688.65,0.00023835,4]
[346110710,1734707462500,-654.6,0.00023835,4]
[346110711,1734707462510,-1117.72,0.00023835,4]
[346110712,1734707462520,-500.0,0.00023835,4]
[346110713,1734707462530,-1296.21,0.00023835,4]
[346110714,1734707462539,-500.0,0.00023835,4]
[346110715,1734707462554,-500.0,0.00023835,4]
[346110716,1734707462564,-500.0,0.00023835,4]
[346110717,1734707462575,-500.0,0.00023835,4]
[346110718,1734707462584,-500.0,0.00023835,4]
[346110719,1734707462595,-500.0,0.00023835,4]
[346110720,1734707462605,-1206.4,0.00023835,4]
[346110721,1734707462615,-1027.71,0.00023835,4]
[346110722,1734707462625,-2695.1,0.00023835,4]
[346110723,1734707462634,-1092.82,0.00023835,4]
[346110724,1734707462644,-500.0,0.00023835,4]
[346110725,1734707462654,-500.0,0.00023835,4]
[346110726,1734707462664,-1837.68,0.00023835,4]
[346110727,1734707462674,-546.08,0.00023835,4]
[346110728,1734707462683,-5443.38,0.00023835,4]
[346110729,1734707462693,-685.52,0.00023835,4]
[346110730,1734707462702,-500.0,0.00023835,4]
[346110731,1734707462712,-500.0,0.00023835,4]
[346110732,1734707462721,-701.16,0.00023835,4]
[346110733,1734707462731,-500.0,0.00023835,4]
[346110734,1734707462741,-1609.32,0.00023835,4]
[346110735,1734707462751,-541.47,0.00023835,4]
[346110736,1734707462761,-763.11,0.00023835,4]
[346110737,1734707462771,-631.11,0.00023835,4]
[346110738,1734707462781,-1104.99,0.00023835,4]
[346110739,1734707462791,-771.36,0.00023835,4]
[346110740,1734707462806,-500.0,0.00023835,4]
[346110741,1734707462816,-500.0,0.00023835,4]
[346110742,1734707462825,-793.52,0.00023835,4]
[346110743,1734707462835,-500.0,0.00023835,4]
[346110744,1734707462846,-500.0,0.00023835,4]
[346110745,1734707462856,-1146.34,0.00023835,4]
[346110746,1734707462866,-1833.46,0.00023835,4]
[346110747,1734707462876,-500.0,0.00023835,4]
[346110748,1734707462885,-500.0,0.00023835,4]
[346110749,1734707462895,-6508.14,0.00023835,4]
[346110750,1734707462904,-500.0,0.00023835,4]
[346110751,1734707462914,-500.0,0.00023835,4]
[346110752,1734707462924,-903.84,0.00023835,4]
[346110753,1734707462934,-500.0,0.00023835,4]
[346110754,1734707462944,-500.0,0.00023835,4]
[346110755,1734707462956,-500.0,0.00023835,4]
[346110756,1734707462967,-500.0,0.00023835,4]
[346110757,1734707462977,-500.0,0.00023835,4]
[346110758,1734707462987,-731.02,0.00023835,4]
[346110759,1734707462996,-776.61,0.00023835,4]
[346110760,1734707463006,-500.0,0.00023835,4]
[346110761,1734707463021,-507.66,0.00023835,4]
[346110762,1734707463031,-965.02,0.00023835,4]
[346110763,1734707463042,-759.84,0.00023835,4]
[346110764,1734707463056,-6484.19,0.00023835,4]
[346110765,1734707463066,-1666.41,0.00023835,4]
[346110766,1734707463077,-2332.61,0.00023835,4]
[346110767,1734707463087,-500.0,0.00023835,4]
[346110768,1734707463100,-500.0,0.00023835,4]
[346110769,1734707463111,-501.2,0.00023835,4]
[346110770,1734707463122,-1389.61,0.00023835,4]
[346110771,1734707463132,-935.41,0.00023835,4]
[346110772,1734707463142,-2453.03,0.00023835,4]
[346110773,1734707463153,-2033.56,0.00023835,4]
[346110774,1734707463163,-500.0,0.00023835,4]
[346110775,1734707463173,-500.0,0.00023835,4]
[346110776,1734707463183,-500.0,0.00023835,4]
[346110777,1734707463193,-500.0,0.00023835,4]
[346110778,1734707463203,-1400.1,0.00023835,4]
[346110779,1734707463212,-1000.0,0.00023835,4]
[346110780,1734707463223,-594.31,0.00023835,4]
[346110781,1734707463233,-500.0,0.00023835,4]
[346110782,1734707463243,-673.97,0.00023835,4]
[346110783,1734707463256,-500.0,0.00023835,4]
[346110784,1734707463266,-500.0,0.00023835,4]
[346110785,1734707463276,-500.0,0.00023835,4]
[346110786,1734707463287,-500.0,0.00023835,4]
[346110787,1734707463299,-500.0,0.00023835,4]
[346110788,1734707463309,-555.46,0.00023835,4]
[346110789,1734707463319,-736.35,0.00023835,4]
[346110790,1734707463329,-1063.31,0.00023835,4]
[346110791,1734707463340,-500.0,0.00023835,4]
[346110792,1734707463350,-947.08,0.00023835,4]
[346110793,1734707463360,-784.6,0.00023835,4]
[346110794,1734707463370,-500.0,0.00023835,4]
[346110795,1734707463380,-500.0,0.00023835,4]
[346110796,1734707463390,-623.0,0.00023835,4]
[346110797,1734707463399,-716.67,0.00023835,4]
[346110798,1734707463409,-580.98,0.00023835,4]
[346110799,1734707463419,-551.86,0.00023835,4]
[346110800,1734707463432,-3286.73,0.00023835,4]
[346110801,1734707463444,-1009.08,0.00023835,4]
[346110802,1734707463455,-1115.76,0.00023835,4]
[346110803,1734707463465,-779.29,0.00023835,4]
[346110804,1734707463476,-500.0,0.00023835,4]
[346110805,1734707463486,-884.51,0.00023835,4]
[346110806,1734707463497,-500.0,0.00023835,4]
[346110807,1734707463507,-842.18,0.00023835,4]
[346110808,1734707463517,-553.76,0.00023835,4]
[346110809,1734707463527,-524.23,0.00023835,4]
[346110810,1734707463536,-586.94778104,0.00023835,4]
[346110811,1734707463548,-736.43,0.00023835,4]
[346110812,1734707463558,-500.0,0.00023835,4]
[346110813,1734707463567,-1081.46,0.00023835,4]
[346110814,1734707463577,-547.43,0.00023835,4]
[346110815,1734707463587,-500.0,0.00023835,4]
[346110816,1734707463597,-500.0,0.00023835,4]
[346110817,1734707463607,-1201.33,0.00023835,4]
[346110818,1734707463617,-500.0,0.00023835,4]
[346110819,1734707463627,-500.0,0.00023835,4]
[346110820,1734707463637,-1116.84,0.00023835,4]
[346110821,1734707463647,-1200.85,0.00023835,4]
[346110822,1734707463657,-500.0,0.00023835,4]
[346110823,1734707463668,-1096.41,0.00023835,4]
[346110824,1734707463678,-500.0,0.00023835,4]
[346110825,1734707463688,-500.0,0.00023835,4]
[346110826,1734707463697,-980.9,0.00023835,4]
[346110827,1734707463707,-500.0,0.00023835,4]
[346110828,1734707463716,-500.0,0.00023835,4]
[346110829,1734707463726,-777.07,0.00023835,4]
[346110830,1734707463736,-500.0,0.00023835,4]
[346110831,1734707463746,-2214.51,0.00023835,4]
[346110832,1734707463756,-566.5,0.00023835,4]
[346110833,1734707463766,-150.0,0.00023837,2]
[346110834,1734707463776,-150.0,0.0002384,2]
[346110835,1734707463786,-150.0,0.00023848,2]
[346110836,1734707463798,-5800.0,0.00023849,2]
[346110837,1734707463808,-150.0,0.00023854,2]
[346110838,1734707463817,-5800.0,0.00023858,2]
[346110839,1734707463827,-150.0,0.0002386,2]
[346110840,1734707463837,-150.0,0.0002386,2]
[346110841,1734707463847,-150.0,0.00023863,2]
[346110842,1734707463857,-5800.0,0.00023866,2]
[346110843,1734707463867,-150.0,0.00023869,2]
[346110844,1734707463877,-21669.0,0.0002387,7]
[346110845,1734707463886,-5800.0,0.00023875,2]
[346110846,1734707463896,-150.0,0.00023875,2]
[346110847,1734707463906,-150.0,0.00023876,2]
[346110848,1734707463917,-150.0,0.00023877,2]
[346110849,1734707463927,-150.0,0.00023877,2]
[346110850,1734707463936,-150.0,0.00023878,2]
[346110851,1734707463946,-150.0,0.00023882,2]
[346110852,1734707463956,-5800.0,0.00023883,2]
[346110853,1734707463968,-978.542718,0.00023884,2]
[346110854,1734707463978,-160.6143171,0.00023884,2]
[346110855,1734707463988,-150.0,0.00023887,2]
[346110856,1734707463998,-5800.0,0.00023892,2]
[346110857,1734707464008,-150.0,0.00023899,2]
[346110858,1734707464019,-150.0,0.000239,2]
[346110859,1734707464032,-1356.636832,0.000239,2]
[346110860,1734707464044,-5800.0,0.000239,2]
[346110861,1734707464054,-163.66853754,0.000239,2]
[346110862,1734707464065,-150.88667824,0.000239,2]
[346110863,1734707464074,-5614.5999437,0.000239,2]